bitfinex-derivatives/quotes_BTCF0:USTF0_20250127
["timestamp","ask_amount","ask_price","bid_price","bid_amount"]
[1737995361039,0.12222083,100860.0,100850.0,0.70129487]
[1737995361230,0.04678161,100860.0,100850.0,0.75619487]
[1737995361636,0.00014849,100870.0,100860.0,0.198304]
[1737995361938,0.00014849,100870.0,100860.0,0.70127487]
[1737995362337,0.19973654,100890.0,100860.0,2.00297087]
[1737995362541,0.198249,100890.0,100880.0,0.70123587]
[1737995363042,0.61814826,100900.0,100890.0,0.198245]
[1737995363343,0.61814826,100900.0,100890.0,0.14217087]
[1737995363533,0.198245,100890.0,100880.0,0.70122087]
[1737995363846,0.205245,100890.0,100880.0,2.06019849]
[1737995364045,0.205245,100890.0,100880.0,0.56019849]
[1737995364336,0.198245,100890.0,100880.0,0.55919849]
[1737995364940,0.198245,100890.0,100880.0,0.00014849]
[1737995364941,0.559045,100890.0,100880.0,0.00014849]
[1737995365437,0.70121587,100890.0,100880.0,0.00014849]
[1737995365635,0.75731587,100890.0,100880.0,0.00014849]
[1737995365834,0.198304,100860.0,100850.0,0.70277519]
[1737995366045,0.198304,100860.0,100850.0,0.57073625]
[1737995366241,0.198304,100860.0,100850.0,0.36228732]
[1737995366435,0.198324,100850.0,100840.0,0.687696]
[1737995366645,0.198324,100850.0,100840.0,1.19066687]
[1737995367538,0.19845849,100860.0,100850.0,0.198324]
[1737995367752,0.00014849,100860.0,100850.0,0.70129487]
[1737995369647,0.00014849,100860.0,100840.0,1.01113101]
[1737995369950,0.198324,100850.0,100840.0,1.20046801]
[1737995370446,0.00014849,100860.0,100850.0,0.198324]
[1737995370638,0.00014849,100860.0,100850.0,0.70129487]
[1737995370837,0.00014849,100860.0,100850.0,0.71029487]
[1737995371044,0.47358752,100890.0,100860.0,0.049576]
[1737995371045,0.61663852,100890.0,100860.0,0.049576]
[1737995371238,0.19973852,100890.0,100880.0,0.14217087]
[1737995371444,0.19973852,100890.0,100880.0,0.50297087]
[1737995371741,0.00148752,100890.0,100880.0,0.70123587]
[1737995372850,0.19973252,100890.0,100880.0,0.70123587]
[1737995373342,0.19973252,100890.0,100880.0,0.34043587]
[1737995373543,0.198265,100880.0,100870.0,0.70139436]
[1737995373849,0.198265,100880.0,100870.0,0.55922349]
[1737995374549,0.198265,100880.0,100870.0,0.19842349]
[1737995374850,0.206265,100880.0,100870.0,0.00114849]
[1737995375036,0.206265,100880.0,100870.0,0.56023349]
[1737995375241,0.206265,100880.0,100870.0,0.70240436]
[1737995375849,0.008,100880.0,100870.0,0.70240436]
[1737995376050,0.008,100880.0,100870.0,0.84457523]
[1737995376245,0.008,100880.0,100870.0,0.70240436]
[1737995376952,0.00148752,100890.0,100870.0,0.50311936]
[1737995377156,0.00148752,100890.0,100880.0,0.70123587]
[1737995378157,0.00148752,100890.0,100880.0,0.71110198]
[1737995378744,0.19973252,100890.0,100880.0,0.71110198]
[1737995379240,0.19973252,100890.0,100880.0,0.56893111]
[1737995379445,0.19973252,100890.0,100880.0,0.20813111]
[1737995379642,0.19973252,100890.0,100880.0,0.34043587]
[1737995380044,0.19973252,100890.0,100880.0,0.198265]
[1737995380247,0.198265,100880.0,100870.0,0.70339636]
[1737995380447,0.198265,100880.0,100870.0,0.70139636]
[1737995380656,0.198265,100880.0,100870.0,0.71129119]
[1737995380860,0.00148752,100890.0,100880.0,0.198265]
[1737995381059,0.00148752,100890.0,100880.0,0.70123587]
[1737995381550,0.19973252,100890.0,100880.0,2.20123587]
[1737995382951,0.19973252,100890.0,100880.0,1.84043587]
[1737995383447,0.19973252,100890.0,100880.0,2.20623587]
[1737995383654,0.00148752,100890.0,100880.0,2.20623587]
[1737995383855,0.00148752,100890.0,100880.0,2.34840674]
[1737995384053,0.10014849,100900.0,100890.0,0.198245]
[1737995384256,0.29837449,100900.0,100890.0,0.70121587]
[1737995384659,0.29837449,100900.0,100890.0,2.20121587]
[1737995385557,0.29837449,100900.0,100890.0,0.70121587]
[1737995385958,0.29837449,100900.0,100890.0,2.20121587]
[1737995386158,0.46094849,100900.0,100880.0,0.005]
[1737995386359,0.198245,100890.0,100880.0,0.203265]
[1737995386565,0.29837949,100900.0,100890.0,0.198245]
[1737995386857,0.29837949,100900.0,100890.0,0.34041587]
[1737995387057,0.29837949,100900.0,100890.0,0.27220128]
[1737995387250,0.30537949,100900.0,100890.0,0.14317087]
[1737995387455,0.30537949,100900.0,100890.0,0.70221587]
[1737995387765,0.30537949,100900.0,100890.0,0.34141587]
[1737995388264,0.30537949,100900.0,100890.0,0.70221587]
[1737995388662,0.30537949,100900.0,100890.0,0.34141587]
[1737995388857,0.30537949,100900.0,100890.0,0.70221587]
[1737995389555,0.10714849,100900.0,100890.0,0.70221587]
[1737995389759,0.30537449,100900.0,100890.0,0.70221587]
[1737995390556,0.10714849,100900.0,100890.0,0.71480303]
[1737995390867,0.10714849,100900.0,100890.0,0.76860303]
[1737995391059,0.10714849,100900.0,100890.0,0.82130303]
[1737995391259,0.10714849,100900.0,100890.0,0.87550303]
[1737995392161,0.10714849,100900.0,100890.0,2.37550303]
[1737995395062,0.05618731,100930.0,100890.0,2.17725803]
[1737995395266,0.19965731,100930.0,100920.0,0.70115687]
[1737995396169,0.19965731,100930.0,100920.0,0.558986]
[1737995396761,0.19965731,100930.0,100920.0,0.70115687]
[1737995396962,0.20665731,100930.0,100920.0,0.70215687]
[1737995397566,0.20665731,100930.0,100920.0,2.20215687]
[1737995399271,0.20665731,100930.0,100920.0,2.059986]
[1737995399459,0.20665731,100930.0,100920.0,0.559986]
[1737995399773,0.198186,100920.0,100910.0,0.63412452]
[1737995399966,0.198186,100920.0,100910.0,2.13412452]
[1737995400167,0.249886,100920.0,100910.0,0.19834649]
[1737995400471,1.04638874,100920.0,100890.0,0.65090703]
[1737995400767,0.70119687,100900.0,100890.0,0.65090703]
[1737995400973,0.70119687,100900.0,100890.0,0.5157055]
[1737995401171,0.559026,100900.0,100890.0,0.422678]
[1737995401966,0.559026,100900.0,100890.0,0.76309387]
[1737995402167,0.559026,100900.0,100890.0,0.68247019]
[1737995402566,0.198226,100900.0,100890.0,0.68247019]
[1737995402873,0.559026,100900.0,100890.0,0.34205432]
[1737995403465,0.70119687,100900.0,100890.0,0.34805432]
[1737995403662,0.198245,100890.0,100880.0,0.00014849]
[1737995403869,0.198265,100880.0,100870.0,0.88752741]
[1737995404176,0.559065,100880.0,100870.0,0.88752741]
[1737995404363,0.70123587,100880.0,100870.0,0.72402841]
[1737995404675,0.198363,100830.0,100820.0,0.0531]
[1737995404865,0.559163,100830.0,100820.0,1.5]
[1737995405374,0.3608,100830.0,100820.0,1.84055387]
[1737995405776,0.36094849,100840.0,100820.0,2.00297087]
[1737995405969,0.36094849,100840.0,100830.0,0.34053387]
[1737995406163,0.00014849,100840.0,100830.0,0.70133387]
[1737995407178,0.00114849,100840.0,100830.0,0.71033387]
[1737995408872,0.00114849,100840.0,100830.0,0.40623387]
[1737995409074,0.37642185,100840.0,100830.0,0.76703387]
[1737995409471,0.37642185,100840.0,100830.0,0.40623387]
[1737995409672,0.37642185,100840.0,100830.0,0.264063]
[1737995409967,0.57476585,100840.0,100830.0,0.264063]
[1737995410172,0.57476585,100840.0,100830.0,0.009]
[1737995410372,1.07773672,100840.0,100830.0,0.009]
[1737995410974,0.93556585,100840.0,100830.0,0.009]
[1737995411188,1.07773672,100840.0,100830.0,0.009]
[1737995411483,0.93556585,100840.0,100830.0,0.009]
[1737995412181,0.37642185,100840.0,100830.0,0.34953387]
[1737995412383,0.37642185,100840.0,100830.0,0.207363]
[1737995412582,0.29324553,100840.0,100830.0,0.207363]
[1737995412877,0.29324553,100840.0,100830.0,0.34953387]
[1737995413075,0.29324553,100840.0,100830.0,0.71033387]
[1737995413280,0.29324553,100840.0,100830.0,0.43030561]
[1737995413477,0.29324553,100840.0,100830.0,0.62866861]
[1737995414670,0.20684553,100840.0,100830.0,0.70498383]
[1737995414875,0.4657,100880.0,100870.0,0.198285]
[1737995414876,0.1049,100880.0,100870.0,0.198285]
[1737995415078,0.0531,100880.0,100870.0,0.1300417]
[1737995415382,0.603949,100890.0,100880.0,0.198265]
[1737995415970,0.198265,100880.0,100870.0,1.69842549]
[1737995416175,0.559065,100880.0,100870.0,1.69842549]
[1737995416380,0.568065,100880.0,100870.0,1.50114849]
[1737995416779,0.3698,100880.0,100870.0,1.69943349]
[1737995416987,0.009,100880.0,100870.0,1.69943349]
[1737995418373,0.207265,100880.0,100870.0,1.50114849]
[1737995418575,0.77755109,100880.0,100870.0,0.00014849]
[1737995418780,0.77755109,100880.0,100840.0,0.00148743]
[1737995418781,0.198324,100850.0,100840.0,0.19982843]
[1737995419288,0.559124,100850.0,100840.0,0.19982843]
[1737995419495,0.559124,100850.0,100840.0,0.00148743]
[1737995420096,0.559124,100850.0,100840.0,0.20483143]
[1737995420286,0.559124,100850.0,100840.0,0.00648743]
[1737995420489,0.559124,100850.0,100840.0,0.005]
[1737995420692,0.611924,100850.0,100840.0,0.005]
[1737995421195,0.19845549,100860.0,100850.0,0.198324]
[1737995421493,0.00014849,100860.0,100850.0,0.77761009]
[1737995421692,0.47395024,100880.0,100870.0,0.198285]
[1737995422390,0.47395024,100880.0,100870.0,0.253485]
[1737995423090,0.27419357,100880.0,100870.0,0.83277109]
[1737995423392,0.27419357,100880.0,100870.0,0.83377109]
[1737995423393,0.21260659,100880.0,100870.0,0.83377109]
[1737995423688,0.21260659,100880.0,100870.0,0.83130108]
[1737995423895,0.20460659,100880.0,100870.0,0.83930108]
[1737995424582,0.40287159,100880.0,100870.0,0.56561499]
[1737995425292,0.20460659,100880.0,100870.0,0.78410108]
[1737995425489,0.40287159,100880.0,100870.0,0.78410108]
[1737995425787,0.76367159,100880.0,100870.0,0.03378]
[1737995425988,0.40287159,100880.0,100870.0,0.03378]
[1737995426290,0.560065,100880.0,100870.0,0.03378]
[1737995426696,0.198265,100880.0,100870.0,0.223065]
[1737995426899,0.560065,100880.0,100870.0,0.03378]
[1737995427491,0.198265,100880.0,100870.0,0.44555109]
[1737995427697,0.198265,100880.0,100870.0,1.92077109]
[1737995427896,0.198265,100880.0,100870.0,1.702285]
[1737995428895,0.198265,100880.0,100870.0,0.004]
[1737995428896,0.559065,100880.0,100870.0,0.004]
[1737995429599,0.198265,100880.0,100870.0,0.202285]
[1737995430101,0.24126695,100890.0,100880.0,0.13004049]
[1737995430291,0.03335506,100890.0,100880.0,0.87142658]
[1737995430893,0.83486347,100900.0,100880.0,0.74138609]
[1737995431094,0.83486347,100900.0,100890.0,0.559045]
[1737995431398,0.198245,100890.0,100880.0,0.721162]
[1737995431604,0.198245,100890.0,100880.0,0.72131049]
[1737995431798,0.83501796,100900.0,100880.0,0.72129449]
[1737995431994,1.19581796,100900.0,100890.0,0.198245]
[1737995432296,0.198245,100890.0,100880.0,0.61430749]
[1737995432495,0.198245,100890.0,100880.0,0.55920749]
[1737995432695,1.05028396,100900.0,100890.0,0.198245]
[1737995432696,1.24919896,100900.0,100890.0,0.198245]
[1737995432998,0.63678396,100900.0,100890.0,0.77753109]
[1737995433303,0.63678396,100900.0,100890.0,2.27753109]
[1737995433903,0.63678396,100900.0,100890.0,2.33243109]
[1737995434198,0.84400996,100900.0,100890.0,2.114945]
[1737995434601,0.84400996,100900.0,100890.0,2.25652624]
[1737995434995,0.84400996,100900.0,100890.0,0.001]
[1737995435695,1.12316118,100900.0,100890.0,0.001]
[1737995435891,0.81536118,100900.0,100890.0,0.199245]
[1737995436098,0.81536118,100900.0,100890.0,0.001]
[1737995436290,0.86806118,100900.0,100890.0,0.001]
[1737995436493,0.86806118,100900.0,100890.0,0.34082624]
[1737995436800,0.85906118,100900.0,100890.0,0.34382624]
[1737995437404,1.21986118,100900.0,100890.0,0.001]
[1737995439095,1.22886118,100900.0,100890.0,0.001]
[1737995439392,0.86806118,100900.0,100890.0,0.34082624]
[1737995439597,0.75336118,100900.0,100890.0,0.70062624]
[1737995439791,0.76236118,100900.0,100890.0,0.70162624]
[1737995439995,0.76236118,100900.0,100890.0,0.34082624]
[1737995440699,0.75336118,100900.0,100890.0,0.33982624]
[1737995440906,0.76236118,100900.0,100890.0,0.34082624]
[1737995441293,0.76236118,100900.0,100890.0,0.63341765]
[1737995442204,0.76236118,100900.0,100890.0,0.50338124]
[1737995442398,0.76236118,100900.0,100890.0,0.70162624]
[1737995442705,0.75336118,100900.0,100890.0,0.004]
[1737995442905,0.88146793,100900.0,100890.0,0.004]
[1737995443106,0.88146793,100900.0,100890.0,0.14558124]
[1737995443295,0.52066793,100900.0,100890.0,0.14558124]
[1737995443496,0.88146793,100900.0,100890.0,0.14558124]
[1737995443699,0.52066793,100900.0,100890.0,0.14558124]
[1737995443899,0.88146793,100900.0,100890.0,0.004]
[1737995444296,0.68324193,100900.0,100880.0,2.20078573]
[1737995444503,0.198245,100890.0,100880.0,2.20078573]
[1737995445501,0.198245,100890.0,100880.0,2.00252973]
[1737995445705,0.251645,100890.0,100880.0,2.00252973]
[1737995446001,0.251645,100890.0,100880.0,2.20079473]
[1737995446505,0.198245,100890.0,100880.0,2.20079473]
[1737995446697,0.198245,100890.0,100880.0,2.20179473]
[1737995447006,0.198245,100890.0,100880.0,2.00352973]
[1737995447305,0.198245,100890.0,100880.0,2.00652973]
[1737995447495,0.198245,100890.0,100880.0,2.20479473]
[1737995448212,0.198245,100890.0,100880.0,2.00652973]
[1737995448702,0.2895484,100890.0,100880.0,2.34637597]
[1737995448897,0.0913034,100890.0,100880.0,2.20479473]
[1737995449092,0.2895484,100890.0,100880.0,2.20479473]
[1737995449294,0.0913034,100890.0,100880.0,2.34637597]
[1737995450204,0.0913034,100890.0,100880.0,2.20479473]
[1737995450398,0.0913034,100890.0,100880.0,2.34637597]
[1737995450703,0.0913034,100890.0,100880.0,0.84637597]
[1737995450897,0.0913034,100890.0,100880.0,0.70479473]
[1737995451205,0.0913034,100890.0,100880.0,2.20479473]
[1737995452201,0.32229344,100890.0,100880.0,2.20479473]
[1737995453199,0.52053844,100890.0,100880.0,2.20479473]
[1737995453412,0.88133844,100890.0,100880.0,4.9e-07]
[1737995453599,1.41313468,100890.0,100830.0,0.50238124]
[1737995453809,0.198344,100840.0,100830.0,1.83994024]
[1737995454107,0.198344,100840.0,100820.0,0.1658]
[1737995454108,0.198363,100830.0,100820.0,0.73952487]
[1737995454306,0.198348,100840.0,100830.0,0.198363]
[1737995454505,0.198348,100840.0,100820.0,0.54114387]
[1737995454703,0.198348,100840.0,100830.0,0.14158124]
[1737995455603,0.198348,100840.0,100830.0,0.16637124]
[1737995456310,0.199348,100840.0,100830.0,0.17537124]
[1737995456910,0.560148,100840.0,100830.0,0.17537124]
[1737995457107,0.560148,100840.0,100830.0,0.37373424]
[1737995457305,0.001,100840.0,100830.0,0.73453424]
[1737995457509,0.199344,100840.0,100830.0,0.42723424]
[1737995457698,0.199344,100840.0,100830.0,0.285653]
[1737995457906,0.199344,100840.0,100830.0,0.42723424]
[1737995458105,0.560144,100840.0,100830.0,0.03379]
[1737995458510,0.560144,100840.0,100830.0,0.009]
[1737995459414,0.560144,100840.0,100830.0,0.207363]
[1737995459914,0.560144,100840.0,100830.0,1.707363]
[1737995460509,0.001,100840.0,100830.0,1.84894424]
[1737995460706,0.001,100840.0,100830.0,2.20974424]
[1737995461010,0.3608,100880.0,100830.0,2.20974424]
[1737995461011,0.28442134,100890.0,100880.0,0.198265]
[1737995461210,0.28442134,100890.0,100880.0,0.70064624]
[1737995461409,0.37038599,100890.0,100880.0,0.70064624]
[1737995461711,0.53642529,100890.0,100880.0,1.698265]
[1737995462009,0.53642529,100890.0,100870.0,0.55558124]
[1737995462010,0.198265,100880.0,100870.0,0.0532]
[1737995462215,0.559065,100880.0,100870.0,0.00014849]
[1737995462410,0.613865,100880.0,100870.0,1.50014849]
[1737995462815,0.75544624,100880.0,100870.0,0.00014849]
[1737995463002,0.198304,100860.0,100850.0,0.0014873]
[1737995463317,0.559104,100860.0,100850.0,0.0014873]
[1737995464416,0.198324,100850.0,100840.0,1.50014849]
[1737995465118,0.559124,100850.0,100840.0,1.50014849]
[1737995465318,0.613924,100850.0,100840.0,1.50014849]
[1737995465518,0.253124,100850.0,100840.0,1.50014849]
[1737995465919,0.253124,100850.0,100840.0,0.00014849]
[1737995466116,0.613924,100850.0,100840.0,0.00014849]
[1737995466314,0.253124,100850.0,100840.0,0.00014849]
[1737995466711,0.81170524,100850.0,100840.0,0.00014849]
[1737995467622,0.670124,100850.0,100840.0,0.00014849]
[1737995468007,0.671124,100850.0,100840.0,0.00914849]
[1737995469514,0.61438124,100850.0,100810.0,0.99126124]
[1737995469820,0.198403,100810.0,100800.0,0.17353844]
[1737995470018,0.559203,100810.0,100800.0,0.1]
[1737995471121,0.204403,100810.0,100800.0,0.44100324]
[1737995472216,0.559203,100810.0,100800.0,0.1]
[1737995473515,0.198422,100800.0,100790.0,0.00014849]
[1737995473713,0.198422,100800.0,100770.0,0.54490837]
[1737995473714,0.198462,100780.0,100770.0,0.54490837]
[1737995474014,0.198462,100780.0,100770.0,2.18908937]
[1737995475114,0.559262,100780.0,100770.0,0.00148837]
[1737995476121,0.560262,100780.0,100770.0,0.01048837]
[1737995476827,0.560262,100780.0,100770.0,0.35055061]
[1737995477027,0.560262,100780.0,100770.0,0.15206961]
[1737995477223,0.560262,100780.0,100770.0,0.01048837]
[1737995478124,0.560262,100780.0,100770.0,0.20896937]
[1737995478528,0.560262,100780.0,100770.0,0.35055061]
[1737995479030,0.199462,100780.0,100770.0,0.71135061]
[1737995479220,0.199462,100780.0,100770.0,0.35055061]
[1737995480026,0.199462,100780.0,100770.0,0.71135061]
[1737995480230,0.001,100780.0,100770.0,0.71135061]
[1737995481231,0.001,100780.0,100770.0,2.21135061]
[1737995481818,0.001,100780.0,100770.0,1.85055061]
[1737995482131,0.560262,100780.0,100770.0,0.20896937]
[1737995482523,0.560262,100780.0,100770.0,0.01048837]
[1737995482937,0.560262,100780.0,100770.0,0.20896937]
[1737995483430,0.560262,100780.0,100770.0,0.35055061]
[1737995483632,0.199462,100780.0,100770.0,0.71135061]
[1737995483931,0.001,100780.0,100770.0,0.71135061]
[1737995484123,0.001,100780.0,100770.0,0.35055061]
[1737995484327,0.001,100780.0,100770.0,0.71135061]
[1737995486731,0.07292331,100800.0,100790.0,0.198442]
[1737995487028,0.20335152,100810.0,100800.0,0.198422]
[1737995487226,0.20335152,100810.0,100800.0,0.70080324]
[1737995487427,0.20335152,100810.0,100800.0,2.20080324]
[1737995487730,0.40175452,100810.0,100800.0,2.20080324]
[1737995488133,0.40175452,100810.0,100800.0,1.698422]
[1737995488329,0.45465452,100810.0,100800.0,1.698422]
[1737995488530,0.61705152,100810.0,100790.0,0.61388249]
[1737995488727,0.198422,100800.0,100790.0,0.6253417]
[1737995488925,0.198422,100800.0,100790.0,0.3724077]
[1737995489435,0.559222,100800.0,100790.0,0.00014849]
[1737995489837,0.70080324,100800.0,100790.0,0.00014849]
[1737995490437,0.198462,100780.0,100770.0,0.00148837]
[1737995490631,0.559262,100780.0,100770.0,0.00148837]
[1737995490827,0.615962,100780.0,100770.0,0.00148837]
[1737995491022,0.255162,100780.0,100770.0,0.19996937]
[1737995491833,0.256162,100780.0,100770.0,0.20896937]
[1737995492338,0.256162,100780.0,100770.0,0.01048837]
[1737995492636,0.616962,100780.0,100770.0,0.01048837]
[1737995492836,0.616962,100780.0,100770.0,0.35055061]
[1737995493023,0.560262,100780.0,100770.0,0.35055061]
[1737995493229,0.199462,100780.0,100770.0,0.71135061]
[1737995493829,0.001,100780.0,100770.0,0.71135061]
[1737995495232,0.00014849,100790.0,100780.0,0.198462]
[1737995495536,0.19989975,100810.0,100800.0,0.198422]
[1737995495733,0.19989975,100810.0,100800.0,0.34000324]
[1737995497127,0.00148875,100810.0,100800.0,0.34000324]
[1737995497441,0.00148875,100810.0,100800.0,0.70080324]
[1737995497824,0.19989175,100810.0,100800.0,0.70080324]
[1737995498033,0.198422,100800.0,100790.0,0.25630749]
[1737995498339,0.559222,100800.0,100790.0,0.19858749]
[1737995498528,0.198422,100800.0,100790.0,0.19858749]
[1737995498724,0.198422,100800.0,100790.0,0.34016873]
[1737995499028,0.00148875,100810.0,100800.0,0.198422]
[1737995499229,0.19989175,100810.0,100800.0,0.559222]
[1737995499439,0.19989175,100810.0,100800.0,0.198422]
[1737995500432,0.36228875,100810.0,100790.0,0.50552973]
[1737995500633,0.198422,100800.0,100790.0,0.56238749]
[1737995500838,0.614422,100800.0,100790.0,0.00314849]
[1737995501442,0.198462,100780.0,100770.0,1.94483493]
[1737995501641,0.198462,100780.0,100770.0,2.31698156]
[1737995502042,0.198451,100790.0,100780.0,0.198456]
[1737995502243,0.198451,100790.0,100770.0,0.51372787]
[1737995502244,0.3608,100790.0,100770.0,0.51372787]
[1737995502439,0.198462,100780.0,100770.0,0.71234136]
[1737995503248,0.199462,100780.0,100770.0,0.72134136]
[1737995504443,0.001,100780.0,100770.0,0.72134136]
[1737995504947,0.19857249,100800.0,100790.0,0.198442]
[1737995505150,0.19857249,100800.0,100790.0,0.34002324]
[1737995505554,0.19857249,100800.0,100790.0,1.84002324]
[1737995505752,0.19857249,100800.0,100790.0,1.698442]
[1737995505949,0.55937249,100800.0,100780.0,0.34003424]
[1737995506145,0.19857249,100800.0,100790.0,0.198442]
[1737995506353,0.198442,100790.0,100780.0,0.34003324]
[1737995506656,0.198442,100790.0,100780.0,1.64158124]
[1737995506857,0.311242,100790.0,100780.0,1.5]
[1737995507051,0.311242,100790.0,100780.0,0.198462]
[1737995507246,0.311242,100790.0,100780.0,0.34504324]
[1737995507652,0.256242,100790.0,100780.0,0.34004324]
[1737995507859,0.19858249,100800.0,100790.0,0.198442]
[1737995508061,0.19858249,100800.0,100790.0,0.34002324]
[1737995508552,0.19858249,100800.0,100790.0,0.198442]
[1737995508754,0.19858249,100800.0,100790.0,0.34002324]
[1737995509553,0.19858249,100800.0,100790.0,0.70082324]
[1737995509750,0.19858249,100800.0,100790.0,0.200442]
[1737995510058,0.55938249,100800.0,100790.0,0.002]
[1737995510647,0.00014849,100800.0,100790.0,0.3628]
[1737995510853,0.17623294,100810.0,100800.0,0.198422]
[1737995511157,0.0378454,100810.0,100800.0,0.81110324]
[1737995511955,0.0378454,100810.0,100800.0,0.45030324]
[1737995512151,0.5970484,100810.0,100800.0,0.14158124]
[1737995512352,0.198422,100800.0,100790.0,0.00214849]
[1737995512554,0.198422,100800.0,100790.0,0.34217173]
[1737995512954,0.198422,100800.0,100790.0,0.34017173]
[1737995513755,0.198422,100800.0,100790.0,0.34217173]
[1737995514867,0.559222,100800.0,100790.0,0.00214849]
[1737995515359,0.559222,100800.0,100790.0,0.00122457]
[1737995515565,0.559222,100800.0,100790.0,0.00039673]
[1737995516459,0.198462,100780.0,100770.0,0.00148815]
[1737995516763,0.198501,100760.0,100750.0,0.45913081]
[1737995517864,0.198501,100760.0,100750.0,0.20774957]
[1737995518060,0.198501,100760.0,100750.0,0.19865043]
[1737995518252,0.559301,100760.0,100750.0,0.00013543]
[1737995518660,0.559301,100760.0,100750.0,0.14171667]
[1737995518865,0.559301,100760.0,100750.0,0.00013543]
[1737995519767,0.617001,100760.0,100750.0,0.00813543]
[1737995521167,0.198521,100750.0,100740.0,0.00014849]
[1737995521362,0.559321,100750.0,100740.0,1.50014849]
[1737995521557,0.559321,100750.0,100740.0,0.00014849]
[1737995522164,0.3608,100750.0,100720.0,0.00148924]
[1737995522369,0.86318124,100730.0,100700.0,0.22413089]
[1737995522556,0.5594,100710.0,100700.0,0.10923089]
[1737995522764,0.5594,100710.0,100700.0,1.6]
[1737995523067,0.6209876,100710.0,100700.0,1.51922669]
[1737995523455,0.198619,100700.0,100690.0,0.00014849]
[1737995523666,0.559419,100700.0,100690.0,0.00014849]
[1737995523866,0.23016156,100700.0,100690.0,0.14172973]
[1737995524276,0.59096156,100700.0,100690.0,0.16654973]
[1737995524564,0.3618,100710.0,100690.0,0.36518873]
[1737995524775,0.198619,100700.0,100690.0,0.36518873]
[1737995524970,0.23509039,100710.0,100690.0,0.52734973]
[1737995525271,0.07305492,100720.0,100700.0,0.3608]
[1737995525467,0.07305492,100720.0,100700.0,0.4156]
[1737995525662,0.07305492,100720.0,100710.0,0.1986]
[1737995525864,0.07305492,100720.0,100710.0,0.34018124]
[1737995526060,0.07305492,100720.0,100710.0,0.70098124]
[1737995526658,0.29133655,100740.0,100710.0,0.70098124]
[1737995526659,0.0913034,100740.0,100710.0,0.64396248]
[1737995526864,0.63226211,100760.0,100740.0,0.19854]
[1737995527058,0.43376011,100760.0,100750.0,0.14158124]
[1737995527263,0.08084301,100760.0,100750.0,0.34010224]
[1737995527465,0.07296011,100760.0,100750.0,0.70090224]
[1737995527861,0.27146111,100760.0,100750.0,0.14158124]
[1737995528171,0.00014849,100770.0,100750.0,0.64396248]
[1737995528367,0.04179411,100790.0,100780.0,0.198462]
[1737995528678,0.00470523,100790.0,100780.0,0.70084324]
[1737995528971,0.20256187,100800.0,100790.0,0.198442]
[1737995529176,0.20256187,100800.0,100790.0,0.34002324]
[1737995529367,0.09577,100800.0,100790.0,0.14158124]
[1737995529674,0.198442,100790.0,100780.0,0.14172973]
[1737995529864,0.559242,100790.0,100780.0,0.14172973]
[1737995530263,0.559242,100790.0,100780.0,0.00014849]
[1737995531763,0.618142,100790.0,100780.0,0.00014849]
[1737995532273,0.627142,100790.0,100780.0,0.00014849]
[1737995533075,0.627142,100790.0,100750.0,0.4267116]
[1737995533076,0.198493,100770.0,100750.0,0.4267116]
[1737995533276,0.3608,100760.0,100750.0,0.4267116]
[1737995533464,0.559293,100770.0,100750.0,0.2281926]
[1737995533670,0.4287,100790.0,100760.0,0.21881142]
[1737995533871,0.568246,100790.0,100780.0,0.198462]
[1737995534375,0.56839449,100790.0,100770.0,0.47128942]
[1737995534974,0.559262,100780.0,100770.0,0.252478]
[1737995535372,0.198481,100770.0,100760.0,0.00014849]
[1737995535571,0.559281,100770.0,100760.0,0.00014849]
[1737995537869,0.198521,100750.0,100740.0,0.4896]
[1737995538069,0.19854,100740.0,100730.0,0.198556]
[1737995538274,0.55934,100740.0,100730.0,0.20769334]
[1737995538476,0.56328164,100740.0,100730.0,0.20769334]
[1737995538969,0.56328164,100740.0,100730.0,0.00913734]
[1737995539177,0.20248164,100740.0,100720.0,0.63755991]
[1737995539480,0.56328164,100740.0,100730.0,0.19856]
[1737995539777,0.56428164,100740.0,100730.0,0.19956]
[1737995540180,0.36574164,100740.0,100730.0,0.41837142]
[1737995540373,0.001,100740.0,100730.0,0.41737142]
[1737995540972,0.3618,100740.0,100730.0,0.41737142]
[1737995541180,0.001,100740.0,100730.0,0.41737142]
[1737995541382,0.001,100740.0,100730.0,1.91737142]
[1737995541972,0.001,100740.0,100730.0,2.27817142]
[1737995542384,0.45657,100800.0,100730.0,2.51893142]
[1737995542588,0.09577,100800.0,100790.0,0.77805342]
[1737995542882,0.294192,100800.0,100790.0,0.41725342]
[1737995543076,0.09577,100800.0,100790.0,0.41725342]
[1737995543270,0.09577,100800.0,100790.0,0.77805342]
[1737995543575,0.10077,100800.0,100790.0,0.77805342]
[1737995543970,0.10077,100800.0,100790.0,0.198442]
[1737995544176,0.659992,100800.0,100780.0,0.47661691]
[1737995544372,0.46157,100800.0,100780.0,0.47661691]
[1737995544581,0.198442,100790.0,100780.0,0.25780549]
[1737995544983,0.559242,100790.0,100780.0,0.25780549]
[1737995545181,0.559242,100790.0,100780.0,0.00014849]
[1737995546778,0.559242,100790.0,100780.0,3.313e-05]
[1737995546985,0.78705342,100790.0,100780.0,3.313e-05]
[1737995547178,0.568242,100790.0,100780.0,3.313e-05]
[1737995547579,0.19854,100740.0,100730.0,2.46444842]
[1737995547775,0.55934,100740.0,100730.0,0.4914655]
[1737995547985,0.5672229,100740.0,100730.0,0.4914655]
[1737995549285,0.3686829,100740.0,100730.0,0.71027692]
[1737995549482,0.19854,100740.0,100730.0,0.90883692]
[1737995549691,0.61687549,100750.0,100740.0,0.19854]
[1737995549878,0.00014849,100750.0,100740.0,0.41735142]
[1737995550075,0.36094849,100750.0,100730.0,0.77097692]
[1737995550280,0.55934,100740.0,100730.0,0.4914655]
[1737995550481,0.55934,100740.0,100730.0,0.0019855]
[1737995550682,0.56328164,100740.0,100730.0,0.0019855]
[1737995551793,0.56428164,100740.0,100730.0,0.42637142]
[1737995551986,0.001,100740.0,100730.0,0.42637142]
[1737995552180,0.3618,100740.0,100730.0,0.42637142]
[1737995552488,0.001,100740.0,100730.0,0.42637142]
[1737995553588,0.3618,100740.0,100730.0,0.42637142]
[1737995553781,0.001,100740.0,100730.0,0.78717142]
[1737995554081,0.001,100740.0,100730.0,1.08717142]
[1737995554288,0.00014849,100750.0,100740.0,0.19854]
[1737995554495,0.00014849,100750.0,100740.0,0.83805142]
[1737995555086,0.00014849,100750.0,100740.0,1.13805142]
[1737995555395,0.3608,100790.0,100780.0,0.198462]
[1737995555591,0.559242,100790.0,100780.0,0.41727342]